[Event "Titled Tuesday Blitz November 22 Late 2022"]
[White "Vykouk, Jan"]
[Black "Kulkarni, Rakesh"]
[WhiteFideId "349658"]
[BlackFideId "5037077"]
[WhiteElo "2736"]
[BlackElo "2480"]
[Result "1/2-1/2"]
[Round "03"]
[TimeControl "180+1"]
[Date "2022.11.23"]
[WhiteClock "0:01:12"]
[BlackClock "0:01:40"]

1. e4 {[%clk 0:03:00]}  c5 {[%clk 0:02:52]} 2. Nf3 {[%clk 0:02:57]}  e6 {[%clk 0:02:48]} 3. d4 {[%clk 0:02:57]}  cxd4 {[%clk 0:02:47]} 4. Nxd4 {[%clk 0:02:58]}  a6 {[%clk 0:02:45]} 5. Bd3 {[%clk 0:02:57]}  Nc6 {[%clk 0:02:39]} 6. Nxc6 {[%clk 0:02:57]}  dxc6 {[%clk 0:02:40]} 7. O-O {[%clk 0:02:57]}  e5 {[%clk 0:02:40]} 8. f4 {[%clk 0:02:57]}  Bc5+ {[%clk 0:02:35]} 9. Kh1 {[%clk 0:02:57]}  Nf6 {[%clk 0:02:36]} 10. h3 {[%clk 0:02:47]}  h5 {[%clk 0:02:34]} 11. f5 {[%clk 0:02:24]}  Ng4 {[%clk 0:02:31]} 12. Qf3 {[%clk 0:02:24]}  Qh4 {[%clk 0:02:19]} 13. Nc3 {[%clk 0:01:19]}  Nf2+ {[%clk 0:02:15]} 14. Kh2 {[%clk 0:01:19]}  Ng4+ {[%clk 0:02:15]} 15. Kh1 {[%clk 0:01:20]}  Nf2+ {[%clk 0:02:15]} 16. Kh2 {[%clk 0:01:15]}  Ng4+ {[%clk 0:01:40]} 17. Kh1 {[%clk 0:01:12]} 1/2-1/2


[Site "https://www.chess.com"]

[Event "Titled Tuesday Blitz November 22 Late 2022"]
[White "Wieczorek, Oskar"]
[Black "Bortnyk, Olexandr"]
[WhiteFideId "1133950"]
[BlackFideId "14120828"]
[WhiteElo "2404"]
[BlackElo "2723"]
[Result "0-1"]
[Round "03"]
[TimeControl "180+1"]
[Date "2022.11.22"]
[WhiteClock "0:00:01"]
[BlackClock "0:00:12"]

1. e4 {[%clk 0:02:52]}  Nf6 {[%clk 0:02:59]} 2. e5 {[%clk 0:02:50]}  Nd5 {[%clk 0:03:00]} 3. d4 {[%clk 0:02:49]}  d6 {[%clk 0:03:00]} 4. Nf3 {[%clk 0:02:49]}  dxe5 {[%clk 0:03:01]} 5. Nxe5 {[%clk 0:02:49]}  c6 {[%clk 0:03:01]} 6. Be2 {[%clk 0:02:49]}  Bf5 {[%clk 0:03:01]} 7. O-O {[%clk 0:02:49]}  Nd7 {[%clk 0:03:02]} 8. Nf3 {[%clk 0:02:49]}  e6 {[%clk 0:03:02]} 9. c4 {[%clk 0:02:50]}  N5f6 {[%clk 0:03:03]} 10. Nh4 {[%clk 0:02:49]}  Bg6 {[%clk 0:03:03]} 11. Nc3 {[%clk 0:02:49]}  Bd6 {[%clk 0:03:03]} 12. g3 {[%clk 0:02:49]}  O-O {[%clk 0:03:03]} 13. Be3 {[%clk 0:02:50]}  Qc7 {[%clk 0:03:00]} 14. Nxg6 {[%clk 0:02:45]}  hxg6 {[%clk 0:03:01]} 15. Qc2 {[%clk 0:02:45]}  e5 {[%clk 0:03:01]} 16. Rad1 {[%clk 0:02:45]}  exd4 {[%clk 0:03:01]} 17. Bxd4 {[%clk 0:02:45]}  Bc5 {[%clk 0:02:56]} 18. Rfe1 {[%clk 0:02:41]}  Rad8 {[%clk 0:02:50]} 19. Bxc5 {[%clk 0:02:40]}  Nxc5 {[%clk 0:02:51]} 20. b4 {[%clk 0:02:41]}  Ne6 {[%clk 0:02:50]} 21. c5 {[%clk 0:02:27]}  a5 {[%clk 0:02:48]} 22. a3 {[%clk 0:02:23]}  Nd4 {[%clk 0:02:47]} 23. Qb2 {[%clk 0:02:23]}  axb4 {[%clk 0:02:46]} 24. axb4 {[%clk 0:02:24]}  Qe5 {[%clk 0:02:07]} 25. Kg2 {[%clk 0:01:42]}  Rfe8 {[%clk 0:01:46]} 26. Bc4 {[%clk 0:01:15]}  Qxe1 {[%clk 0:01:34]} 27. Rxe1 {[%clk 0:01:15]}  Rxe1 {[%clk 0:01:35]} 28. Qd2 {[%clk 0:01:01]}  Rg1+ {[%clk 0:01:35]} 29. Kh3 {[%clk 0:01:02]}  Rd7 {[%clk 0:00:43]} 30. Qf4 {[%clk 0:00:41]}  g5 {[%clk 0:00:33]} 31. Qxg5 {[%clk 0:00:40]}  Nf3 {[%clk 0:00:33]} 32. Qf5 {[%clk 0:00:24]}  Rd4 {[%clk 0:00:28]} 33. Qc8+ {[%clk 0:00:18]}  Kh7 {[%clk 0:00:24]} 34. Qf5+ {[%clk 0:00:11]}  Kg8 {[%clk 0:00:23]} 35. Qc8+ {[%clk 0:00:11]}  Kh7 {[%clk 0:00:23]} 36. Qf5+ {[%clk 0:00:12]}  Kh6 {[%clk 0:00:20]} 37. Qxf3 {[%clk 0:00:08]}  Rxc4 {[%clk 0:00:16]} 38. Qe3+ {[%clk 0:00:07]}  g5 {[%clk 0:00:16]} 39. Ne2 {[%clk 0:00:01]}  Nd5 {[%clk 0:00:12]} 0-1


[Site "https://www.chess.com"]

[Event "Titled Tuesday Blitz November 22 Late 2022"]
[White "Xiong, Jeffery"]
[Black "Al-Tarboush, Ward"]
[WhiteFideId "2047640"]
[BlackFideId "7601450"]
[WhiteElo "3051"]
[BlackElo "2538"]
[Result "0-1"]
[Round "03"]
[TimeControl "180+1"]
[Date "2022.11.23"]
[WhiteClock "0:00:07"]
[BlackClock "0:00:04"]

1. e4 {[%clk 0:03:00]}  c5 {[%clk 0:02:58]} 2. Nf3 {[%clk 0:02:57]}  Nc6 {[%clk 0:02:58]} 3. Bb5 {[%clk 0:02:55]}  e6 {[%clk 0:02:58]} 4. O-O {[%clk 0:02:55]}  Nge7 {[%clk 0:02:57]} 5. d4 {[%clk 0:02:46]}  cxd4 {[%clk 0:02:57]} 6. Nxd4 {[%clk 0:02:47]}  Qb6 {[%clk 0:02:57]} 7. Nxc6 {[%clk 0:02:43]}  Qxb5 {[%clk 0:02:52]} 8. Nd4 {[%clk 0:02:41]}  Qb6 {[%clk 0:02:49]} 9. Nc3 {[%clk 0:02:39]}  a6 {[%clk 0:02:44]} 10. Be3 {[%clk 0:02:00]}  Qxb2 {[%clk 0:02:32]} 11. Ncb5 {[%clk 0:02:00]}  axb5 {[%clk 0:02:24]} 12. Rb1 {[%clk 0:02:00]}  Qxa2 {[%clk 0:01:58]} 13. Nxb5 {[%clk 0:02:00]}  Nc6 {[%clk 0:01:27]} 14. Nc7+ {[%clk 0:02:00]}  Kd8 {[%clk 0:01:27]} 15. Bb6 {[%clk 0:02:01]}  Ke7 {[%clk 0:01:28]} 16. Bc5+ {[%clk 0:02:00]}  Kd8 {[%clk 0:01:28]} 17. Bb6 {[%clk 0:01:54]}  Ke7 {[%clk 0:01:28]} 18. e5 {[%clk 0:01:32]}  f6 {[%clk 0:01:09]} 19. exf6+ {[%clk 0:01:33]}  gxf6 {[%clk 0:01:03]} 20. Re1 {[%clk 0:01:25]}  Ra5 {[%clk 0:00:56]} 21. Bxa5 {[%clk 0:00:29]}  Qxa5 {[%clk 0:00:57]} 22. Nd5+ {[%clk 0:00:30]}  Kd8 {[%clk 0:00:52]} 23. Nxf6 {[%clk 0:00:30]}  Qf5 {[%clk 0:00:41]} 24. Ne4 {[%clk 0:00:27]}  Rg8 {[%clk 0:00:40]} 25. Rb3 {[%clk 0:00:23]}  Qg4 {[%clk 0:00:35]} 26. Qxg4 {[%clk 0:00:15]}  Rxg4 {[%clk 0:00:36]} 27. Nf6 {[%clk 0:00:16]}  Rg6 {[%clk 0:00:32]} 28. Nxh7 {[%clk 0:00:15]}  Be7 {[%clk 0:00:32]} 29. Rg3 {[%clk 0:00:14]}  Rxg3 {[%clk 0:00:30]} 30. hxg3 {[%clk 0:00:15]}  b6 {[%clk 0:00:17]} 31. g4 {[%clk 0:00:15]}  Ke8 {[%clk 0:00:16]} 32. f4 {[%clk 0:00:13]}  Kf7 {[%clk 0:00:15]} 33. Kf2 {[%clk 0:00:13]}  Kg6 {[%clk 0:00:10]} 34. Rh1 {[%clk 0:00:14]}  Bb7 {[%clk 0:00:10]} 35. c3 {[%clk 0:00:14]}  Nd8 {[%clk 0:00:08]} 36. g5 {[%clk 0:00:13]}  Nf7 {[%clk 0:00:08]} 37. Rh4 {[%clk 0:00:13]}  Be4 {[%clk 0:00:08]} 38. Ke3 {[%clk 0:00:10]}  Bf5 {[%clk 0:00:08]} 39. g4 {[%clk 0:00:10]}  Bc2 {[%clk 0:00:08]} 40. Rh2 {[%clk 0:00:09]}  Bb1 {[%clk 0:00:06]} 41. Nf6 {[%clk 0:00:10]}  Bxf6 {[%clk 0:00:03]} 42. gxf6 {[%clk 0:00:11]}  Kxf6 {[%clk 0:00:04]} 43. Rb2 {[%clk 0:00:11]}  Bg6 {[%clk 0:00:04]} 44. Rxb6 {[%clk 0:00:12]}  Ke7 {[%clk 0:00:04]} 45. f5 {[%clk 0:00:08]}  Bh7 {[%clk 0:00:05]} 46. Kf4 {[%clk 0:00:09]}  e5+ {[%clk 0:00:05]} 47. Kg3 {[%clk 0:00:07]}  d5 {[%clk 0:00:04]} 48. Rh6 {[%clk 0:00:07]}  Nxh6 {[%clk 0:00:04]} 0-1


[Site "https://www.chess.com"]

[Event "Titled Tuesday Blitz November 22 Late 2022"]
[White "Young, Ryan"]
[Black "Kleiman, Jake"]
[WhiteFideId "2049945"]
[BlackFideId "2020041"]
[WhiteElo "2311"]
[BlackElo "2621"]
[Result "0-1"]
[Round "03"]
[TimeControl "180+1"]
[Date "2022.11.23"]
[WhiteClock "0:00:10"]
[BlackClock "0:00:24"]

1. e4 {[%clk 0:03:00]}  e5 {[%clk 0:02:59]} 2. Nf3 {[%clk 0:03:00]}  Nc6 {[%clk 0:02:59]} 3. d4 {[%clk 0:03:01]}  exd4 {[%clk 0:02:59]} 4. Nxd4 {[%clk 0:03:02]}  Bb4+ {[%clk 0:02:59]} 5. c3 {[%clk 0:03:01]}  Bc5 {[%clk 0:03:00]} 6. Be3 {[%clk 0:03:00]}  Bb6 {[%clk 0:03:01]} 7. Qd2 {[%clk 0:02:52]}  Nf6 {[%clk 0:03:00]} 8. f3 {[%clk 0:02:52]}  O-O {[%clk 0:03:00]} 9. Na3 {[%clk 0:02:52]}  d5 {[%clk 0:03:00]} 10. Nxc6 {[%clk 0:02:40]}  bxc6 {[%clk 0:03:01]} 11. Bxb6 {[%clk 0:02:07]}  axb6 {[%clk 0:02:59]} 12. O-O-O {[%clk 0:02:01]}  Qe7 {[%clk 0:02:50]} 13. exd5 {[%clk 0:01:51]}  cxd5 {[%clk 0:02:51]} 14. Kb1 {[%clk 0:01:46]}  Bf5+ {[%clk 0:02:47]} 15. Bd3 {[%clk 0:01:46]}  Qd7 {[%clk 0:02:42]} 16. Bxf5 {[%clk 0:01:43]}  Qxf5+ {[%clk 0:02:42]} 17. Qd3 {[%clk 0:01:43]}  Qxd3+ {[%clk 0:02:29]} 18. Rxd3 {[%clk 0:01:43]}  Rfe8 {[%clk 0:02:28]} 19. Rd2 {[%clk 0:01:39]}  c5 {[%clk 0:02:21]} 20. Nb5 {[%clk 0:01:33]}  Re7 {[%clk 0:02:16]} 21. Rhd1 {[%clk 0:01:31]}  h5 {[%clk 0:02:14]} 22. Nd6 {[%clk 0:01:23]}  g6 {[%clk 0:02:12]} 23. Nb5 {[%clk 0:01:17]}  Kg7 {[%clk 0:02:06]} 24. Na3 {[%clk 0:01:17]}  h4 {[%clk 0:02:03]} 25. g3 {[%clk 0:01:14]}  hxg3 {[%clk 0:02:01]} 26. hxg3 {[%clk 0:01:15]}  Rh8 {[%clk 0:02:01]} 27. Rf2 {[%clk 0:01:10]}  Rh3 {[%clk 0:01:59]} 28. g4 {[%clk 0:01:08]}  g5 {[%clk 0:01:51]} 29. Kc2 {[%clk 0:01:01]}  Re3 {[%clk 0:01:46]} 30. Rdf1 {[%clk 0:01:01]}  Kg6 {[%clk 0:01:34]} 31. Kd2 {[%clk 0:00:59]}  Re8 {[%clk 0:01:35]} 32. Nc2 {[%clk 0:00:59]}  Re6 {[%clk 0:01:20]} 33. a3 {[%clk 0:00:53]}  Nd7 {[%clk 0:01:14]} 34. Ne3 {[%clk 0:00:50]}  Nf6 {[%clk 0:01:07]} 35. Nf5 {[%clk 0:00:47]}  Rh8 {[%clk 0:01:01]} 36. Re2 {[%clk 0:00:43]}  Rhe8 {[%clk 0:00:47]} 37. Rh2 {[%clk 0:00:35]}  Ng8 {[%clk 0:00:46]} 38. Rfh1 {[%clk 0:00:32]}  Kf6 {[%clk 0:00:42]} 39. Nh6 {[%clk 0:00:18]}  Nxh6 {[%clk 0:00:38]} 40. Rxh6+ {[%clk 0:00:19]}  Ke5 {[%clk 0:00:37]} 41. Re1+ {[%clk 0:00:18]}  Kf4 {[%clk 0:00:37]} 42. Rexe6 {[%clk 0:00:16]}  Rxe6 {[%clk 0:00:37]} 43. Rxe6 {[%clk 0:00:15]}  fxe6 {[%clk 0:00:37]} 44. Ke2 {[%clk 0:00:15]}  c4 {[%clk 0:00:28]} 45. a4 {[%clk 0:00:15]}  e5 {[%clk 0:00:28]} 46. Kf2 {[%clk 0:00:12]}  e4 {[%clk 0:00:25]} 47. fxe4 {[%clk 0:00:12]}  dxe4 {[%clk 0:00:25]} 48. Ke2 {[%clk 0:00:10]}  Kxg4 {[%clk 0:00:24]} 49. b3 {[%clk 0:00:10]}  cxb3 {[%clk 0:00:24]} 50. Kd2 {[%clk 0:00:11]}  e3+ {[%clk 0:00:23]} 51. Kxe3 {[%clk 0:00:11]}  b2 {[%clk 0:00:24]} 52. Kd4 {[%clk 0:00:10]}  b1=Q {[%clk 0:00:25]} 53. Kc4 {[%clk 0:00:11]}  Kf4 {[%clk 0:00:24]} 54. a5 {[%clk 0:00:10]}  bxa5 {[%clk 0:00:24]} 0-1


[Site "https://www.chess.com"]

[Event "Titled Tuesday Blitz November 22 Late 2022"]
[White "Yurovskykh, Oleksandr"]
[Black "Thomas, Anysia"]
[WhiteFideId "14134020"]
[BlackFideId "670472"]
[WhiteElo "2265"]
[BlackElo "2069"]
[Result "1-0"]
[Round "03"]
[TimeControl "180+1"]
[Date "2022.11.23"]
[WhiteClock "0:00:20"]
[BlackClock "0:00:08"]

1. g3 {[%clk 0:02:59]}  g6 {[%clk 0:02:58]} 2. Bg2 {[%clk 0:02:59]}  Bg7 {[%clk 0:02:58]} 3. e4 {[%clk 0:03:00]}  c5 {[%clk 0:02:59]} 4. Ne2 {[%clk 0:03:00]}  Nc6 {[%clk 0:02:59]} 5. O-O {[%clk 0:03:00]}  Rb8 {[%clk 0:02:56]} 6. c3 {[%clk 0:03:00]}  d6 {[%clk 0:02:55]} 7. d4 {[%clk 0:03:01]}  cxd4 {[%clk 0:02:53]} 8. cxd4 {[%clk 0:03:02]}  Nf6 {[%clk 0:02:51]} 9. Nbc3 {[%clk 0:03:01]}  O-O {[%clk 0:02:51]} 10. h3 {[%clk 0:03:02]}  a6 {[%clk 0:02:40]} 11. Be3 {[%clk 0:02:56]}  b5 {[%clk 0:02:38]} 12. Rc1 {[%clk 0:02:56]}  Bb7 {[%clk 0:02:37]} 13. Qd2 {[%clk 0:02:55]}  Re8 {[%clk 0:02:34]} 14. b3 {[%clk 0:02:51]}  Rc8 {[%clk 0:02:34]} 15. d5 {[%clk 0:02:46]}  Nb8 {[%clk 0:02:24]} 16. Nd4 {[%clk 0:02:46]}  Nbd7 {[%clk 0:02:22]} 17. Nce2 {[%clk 0:02:33]}  Nc5 {[%clk 0:02:21]} 18. f3 {[%clk 0:02:30]}  Qd7 {[%clk 0:02:14]} 19. b4 {[%clk 0:02:25]}  Na4 {[%clk 0:02:03]} 20. Nb3 {[%clk 0:02:18]}  e6 {[%clk 0:01:52]} 21. dxe6 {[%clk 0:02:05]}  Qxe6 {[%clk 0:01:39]} 22. Na5 {[%clk 0:02:03]}  Ba8 {[%clk 0:01:27]} 23. Rxc8 {[%clk 0:02:03]}  Rxc8 {[%clk 0:01:27]} 24. Rc1 {[%clk 0:01:52]}  d5 {[%clk 0:01:25]} 25. Rxc8+ {[%clk 0:01:51]}  Qxc8 {[%clk 0:01:26]} 26. e5 {[%clk 0:01:51]}  Nd7 {[%clk 0:01:20]} 27. f4 {[%clk 0:01:51]}  Nab6 {[%clk 0:01:18]} 28. Bd4 {[%clk 0:01:40]}  Nc4 {[%clk 0:01:14]} 29. Qc3 {[%clk 0:01:40]}  Nf8 {[%clk 0:01:05]} 30. Nb3 {[%clk 0:01:35]}  Ne6 {[%clk 0:01:04]} 31. Nc5 {[%clk 0:01:35]}  Bf8 {[%clk 0:01:01]} 32. Nd3 {[%clk 0:01:22]}  Qc6 {[%clk 0:00:51]} 33. g4 {[%clk 0:01:11]}  Qc8 {[%clk 0:00:31]} 34. f5 {[%clk 0:01:09]}  Ng5 {[%clk 0:00:31]} 35. Ng3 {[%clk 0:01:03]}  Ne4 {[%clk 0:00:27]} 36. Bxe4 {[%clk 0:00:47]}  dxe4 {[%clk 0:00:28]} 37. Nc5 {[%clk 0:00:47]}  Qc6 {[%clk 0:00:22]} 38. Be3 {[%clk 0:00:32]}  Qd5 {[%clk 0:00:20]} 39. e6 {[%clk 0:00:20]}  Qd1+ {[%clk 0:00:19]} 40. Nf1 {[%clk 0:00:20]}  fxe6 {[%clk 0:00:15]} 41. Nxe6 {[%clk 0:00:20]}  Qf3 {[%clk 0:00:12]} 42. Qd4 {[%clk 0:00:16]}  Nxe3 {[%clk 0:00:10]} 43. Qxe3 {[%clk 0:00:15]}  Qxe3+ {[%clk 0:00:09]} 44. Nxe3 {[%clk 0:00:16]}  gxf5 {[%clk 0:00:09]} 45. Nxf8 {[%clk 0:00:16]}  Kxf8 {[%clk 0:00:09]} 46. Nxf5 {[%clk 0:00:16]}  Kf7 {[%clk 0:00:09]} 47. Kf2 {[%clk 0:00:17]}  Ke6 {[%clk 0:00:09]} 48. Ke3 {[%clk 0:00:17]}  Ke5 {[%clk 0:00:10]} 49. Ng3 {[%clk 0:00:15]}  Bd5 {[%clk 0:00:10]} 50. a3 {[%clk 0:00:15]}  h6 {[%clk 0:00:10]} 51. Ne2 {[%clk 0:00:15]}  Bc6 {[%clk 0:00:10]} 52. Nc3 {[%clk 0:00:16]}  Bb7 {[%clk 0:00:10]} 53. h4 {[%clk 0:00:16]}  Ba8 {[%clk 0:00:09]} 54. g5 {[%clk 0:00:16]}  hxg5 {[%clk 0:00:10]} 55. hxg5 {[%clk 0:00:17]}  Kf5 {[%clk 0:00:09]} 56. Kd4 {[%clk 0:00:15]}  Bb7 {[%clk 0:00:07]} 57. g6 {[%clk 0:00:14]}  Kxg6 {[%clk 0:00:07]} 58. Nxe4 {[%clk 0:00:14]}  Kf7 {[%clk 0:00:04]} 59. Nd6+ {[%clk 0:00:14]}  Ke6 {[%clk 0:00:05]} 60. Nxb7 {[%clk 0:00:15]}  Kd7 {[%clk 0:00:05]} 61. Nc5+ {[%clk 0:00:16]}  Kc7 {[%clk 0:00:05]} 62. Nxa6+ {[%clk 0:00:17]}  Kb6 {[%clk 0:00:06]} 63. Kd5 {[%clk 0:00:17]}  Kxa6 {[%clk 0:00:06]} 64. Kc6 {[%clk 0:00:18]}  Ka7 {[%clk 0:00:05]} 65. Kxb5 {[%clk 0:00:19]}  Kb7 {[%clk 0:00:06]} 66. a4 {[%clk 0:00:20]}  Ka7 {[%clk 0:00:06]} 67. a5 {[%clk 0:00:20]}  Ka8 {[%clk 0:00:06]} 68. Ka6 {[%clk 0:00:20]}  Kb8 {[%clk 0:00:07]} 69. b5 {[%clk 0:00:18]}  Ka8 {[%clk 0:00:08]} 70. b6 {[%clk 0:00:18]}  Kb8 {[%clk 0:00:09]} 71. b7 {[%clk 0:00:19]}  Kc7 {[%clk 0:00:08]} 72. Ka7 {[%clk 0:00:20]} 1-0


[Site "https://www.chess.com"]

[Event "Titled Tuesday Blitz November 22 Late 2022"]
[White "Zhigalko, Sergei"]
[Black "Annaberdiyev, Babageldi"]
[WhiteFideId "13502956"]
[BlackFideId "14000385"]
[WhiteElo "2662"]
[BlackElo "2332"]
[Result "1-0"]
[Round "03"]
[TimeControl "180+1"]
[Date "2022.11.22"]
[WhiteClock "0:01:54"]
[BlackClock "0:02:41"]

1. e4 {[%clk 0:03:00]}  e6 {[%clk 0:03:00]} 2. d4 {[%clk 0:03:01]}  d5 {[%clk 0:03:01]} 3. e5 {[%clk 0:03:01]}  c5 {[%clk 0:03:01]} 4. c3 {[%clk 0:03:02]}  Nc6 {[%clk 0:03:02]} 5. Nf3 {[%clk 0:03:03]}  Qb6 {[%clk 0:03:02]} 6. Bd3 {[%clk 0:03:03]}  Bd7 {[%clk 0:03:01]} 7. dxc5 {[%clk 0:03:03]}  Bxc5 {[%clk 0:03:01]} 8. O-O {[%clk 0:03:03]}  a5 {[%clk 0:02:59]} 9. Nbd2 {[%clk 0:03:01]}  a4 {[%clk 0:02:59]} 10. b4 {[%clk 0:02:54]}  axb3 {[%clk 0:02:58]} 11. Nxb3 {[%clk 0:02:53]}  Ba3 {[%clk 0:02:56]} 12. Be3 {[%clk 0:02:49]}  Qd8 {[%clk 0:02:54]} 13. Nc5 {[%clk 0:02:40]}  Bc8 {[%clk 0:02:54]} 14. Rb1 {[%clk 0:02:39]}  Bxc5 {[%clk 0:02:49]} 15. Bxc5 {[%clk 0:02:39]}  Nge7 {[%clk 0:02:50]} 16. Qd2 {[%clk 0:02:26]}  O-O {[%clk 0:02:49]} 17. Ng5 {[%clk 0:02:18]}  h6 {[%clk 0:02:48]} 18. Nh7 {[%clk 0:02:15]}  Re8 {[%clk 0:02:44]} 19. Nf6+ {[%clk 0:02:15]}  gxf6 {[%clk 0:02:42]} 20. Qxh6 {[%clk 0:01:56]}  Nf5 {[%clk 0:02:41]} 21. Bxf5 {[%clk 0:01:54]} 1-0


[Site "https://www.chess.com"]

[Event "Titled Tuesday Blitz November 22 Late 2022"]
[White "Zhu, Jiner"]
[Black "Sadhwani, Raunak"]
[WhiteFideId "8608059"]
[BlackFideId "35093487"]
[WhiteElo "2384"]
[BlackElo "2656"]
[Result "1/2-1/2"]
[Round "03"]
[TimeControl "180+1"]
[Date "2022.11.22"]
[WhiteClock "0:00:41"]
[BlackClock "0:00:04"]

1. e4 {[%clk 0:03:00]}  c6 {[%clk 0:02:59]} 2. Nc3 {[%clk 0:02:59]}  d5 {[%clk 0:03:00]} 3. Nf3 {[%clk 0:02:59]}  dxe4 {[%clk 0:03:00]} 4. Nxe4 {[%clk 0:02:59]}  Nf6 {[%clk 0:03:00]} 5. Qe2 {[%clk 0:02:59]}  Na6 {[%clk 0:03:00]} 6. Nxf6+ {[%clk 0:02:54]}  gxf6 {[%clk 0:03:01]} 7. d4 {[%clk 0:02:52]}  Bg4 {[%clk 0:03:00]} 8. c3 {[%clk 0:02:51]}  Qd5 {[%clk 0:03:00]} 9. h3 {[%clk 0:02:43]}  Bxf3 {[%clk 0:03:00]} 10. Qxf3 {[%clk 0:02:44]}  Qxf3 {[%clk 0:03:00]} 11. gxf3 {[%clk 0:02:45]}  Nc7 {[%clk 0:03:01]} 12. Bd3 {[%clk 0:02:43]}  e6 {[%clk 0:02:58]} 13. Bd2 {[%clk 0:02:42]}  h5 {[%clk 0:02:44]} 14. O-O-O {[%clk 0:02:38]}  Bh6 {[%clk 0:02:28]} 15. Be3 {[%clk 0:02:34]}  Nd5 {[%clk 0:02:27]} 16. Kd2 {[%clk 0:02:28]}  O-O-O {[%clk 0:02:25]} 17. Rhg1 {[%clk 0:02:21]}  f5 {[%clk 0:02:18]} 18. Bxh6 {[%clk 0:02:07]}  Rxh6 {[%clk 0:02:19]} 19. Rg7 {[%clk 0:02:07]}  Rf8 {[%clk 0:02:18]} 20. Rdg1 {[%clk 0:02:04]}  Kd7 {[%clk 0:02:16]} 21. h4 {[%clk 0:02:01]}  Ke7 {[%clk 0:02:14]} 22. Rg8 {[%clk 0:01:58]}  Rh8 {[%clk 0:02:01]} 23. Rxh8 {[%clk 0:01:56]}  Rxh8 {[%clk 0:02:02]} 24. Rg5 {[%clk 0:01:53]}  Nf4 {[%clk 0:02:00]} 25. Be2 {[%clk 0:01:47]}  Ng6 {[%clk 0:01:55]} 26. f4 {[%clk 0:01:46]}  Nxf4 {[%clk 0:01:51]} 27. Bf3 {[%clk 0:01:42]}  Kf8 {[%clk 0:01:41]} 28. Ke3 {[%clk 0:01:38]}  f6 {[%clk 0:01:41]} 29. Rg1 {[%clk 0:01:36]}  Nd5+ {[%clk 0:01:41]} 30. Bxd5 {[%clk 0:01:26]}  cxd5 {[%clk 0:01:41]} 31. f3 {[%clk 0:01:26]}  Rg8 {[%clk 0:01:35]} 32. Rxg8+ {[%clk 0:01:17]}  Kxg8 {[%clk 0:01:36]} 33. f4 {[%clk 0:01:17]}  Kf7 {[%clk 0:01:36]} 34. Kf3 {[%clk 0:01:15]}  Ke7 {[%clk 0:01:36]} 35. Ke3 {[%clk 0:01:15]}  Kd6 {[%clk 0:01:36]} 36. Kd3 {[%clk 0:01:12]}  e5 {[%clk 0:01:35]} 37. Ke3 {[%clk 0:01:03]}  a5 {[%clk 0:00:57]} 38. a4 {[%clk 0:00:54]}  Ke6 {[%clk 0:00:21]} 39. Kf3 {[%clk 0:00:52]}  b5 {[%clk 0:00:16]} 40. b3 {[%clk 0:00:41]}  bxa4 {[%clk 0:00:09]} 41. bxa4 {[%clk 0:00:42]}  Kd6 {[%clk 0:00:08]} 42. Ke3 {[%clk 0:00:41]}  Ke6 {[%clk 0:00:07]} 43. Kf3 {[%clk 0:00:41]}  Kd6 {[%clk 0:00:05]} 44. Ke3 {[%clk 0:00:41]}  Ke6 {[%clk 0:00:04]} 45. Kf3 {[%clk 0:00:41]} 1/2-1/2


[Site "https://www.chess.com"]